bitfinex/quotes_SOLUSD_20250616
["timestamp","ask_amount","ask_price","bid_price","bid_amount"]
[1750088486183,8.53271678,156.96,156.92,22.3043589]
[1750088486382,4.76406599,156.95,156.92,22.3043589]
[1750088486582,7.14450125,156.99,156.92,22.3043589]
[1750088486900,8.53271678,156.96,156.92,22.3043589]
[1750088487099,4.76363207,156.95,156.92,22.3043589]
[1750088487310,8.53271678,156.96,156.92,22.3043589]
[1750088487615,4.76252745,156.95,156.92,22.3043589]
[1750088487914,8.53271678,156.96,156.92,22.3043589]
[1750088488088,4.76252649,156.95,156.92,22.3043589]
[1750088488409,8.53271678,156.96,156.92,22.3043589]
[1750088488708,4.76255134,156.95,156.92,22.3043589]
[1750088489013,8.53271678,156.96,156.92,22.3043589]
[1750088489216,4.76255232,156.95,156.92,22.3043589]
[1750088489515,8.53271678,156.96,156.92,22.3043589]
[1750088489813,4.76150194,156.95,156.92,22.3043589]
[1750088489991,8.53271678,156.95,156.92,22.3043589]
[1750088493324,8.53271678,156.96,156.92,22.3043589]
[1750088495321,4.7604337,156.95,156.92,22.3043589]
[1750088495541,8.53271678,156.96,156.92,22.3043589]
[1750088495725,4.75994736,156.95,156.92,22.3043589]
[1750088496023,8.53271678,156.96,156.92,22.3043589]
[1750088496201,13.29266943,156.95,156.92,22.3043589]
[1750088496402,8.53271678,156.93,156.92,6.37267397]
[1750088496607,13.29332141,156.93,156.92,6.37267397]
[1750088496923,8.53271678,156.93,156.92,6.37267397]
[1750088497119,8.53271678,156.95,156.92,6.37267397]
[1750088498732,10.15291678,156.96,156.92,6.37267397]
[1750088499036,8.53271678,156.97,156.92,22.3043589]
[1750088499225,0.28432314,156.99,156.93,8.53271678]
[1750088499415,8.53271678,156.97,156.93,8.53271678]
[1750088499613,8.53271678,156.97,156.92,30.83707568]
[1750088500533,8.53271678,156.98,156.93,8.53271678]
[1750088500728,37.49183415,157.0,156.93,8.53271678]
[1750088500907,8.53271678,156.98,156.93,8.53271678]
[1750088501236,19.63799537,156.99,156.94,8.53271678]
[1750088501405,4.75809731,156.98,156.94,8.53271678]
[1750088501605,19.63799537,156.99,156.94,8.53271678]
[1750088501908,4.75817006,156.98,156.94,8.53271678]
[1750088502123,19.63799537,156.99,156.95,6.37145587]
[1750088502303,4.75827058,156.98,156.95,6.37145587]
[1750088502502,19.63799537,156.99,156.95,6.37145587]
[1750088502698,4.75780233,156.98,156.95,6.37145587]
[1750088502930,19.63799537,156.99,156.95,6.37145587]
[1750088503103,4.75780329,156.98,156.95,6.37145587]
[1750088503304,19.63799537,156.99,156.95,6.37145587]
[1750088503528,4.75850348,156.98,156.95,22.30009556]
[1750088503714,19.63799537,156.99,156.95,22.30009556]
[1750088504017,4.75850348,156.98,156.95,30.83281234]
[1750088504230,19.63799537,156.99,156.95,30.83281234]
[1750088504406,4.75832702,156.98,156.95,30.83281234]
[1750088504606,11.10527859,156.99,156.95,30.83281234]
[1750088505021,29.32191132,157.03,156.97,8.53271678]
[1750088505210,13.29051756,157.02,156.98,8.53271678]
[1750088505407,4.75780078,157.01,156.98,8.53271678]
[1750088505622,4.75780078,157.0,156.98,8.53271678]
[1750088505831,8.53271678,157.03,156.96,18.64964886]
[1750088506132,4.75654206,157.02,156.96,44.64964886]
[1750088506332,4.75654206,157.01,156.99,8.53271678]
[1750088506636,8.53271678,157.03,156.99,8.53271678]
[1750088506830,4.75644996,157.02,157.0,6.36942675]
[1750088507035,8.53271678,157.03,157.0,6.36942675]
[1750088507221,4.756448,157.02,157.0,6.36942675]
[1750088507418,8.53271678,157.03,157.0,6.36942675]
[1750088507618,4.756448,157.02,157.0,6.36942675]
[1750088507821,8.53271678,157.03,157.0,6.36942675]
[1750088508015,4.75570569,157.02,157.0,6.36942675]
[1750088508235,4.75570569,157.01,157.0,6.36942675]
[1750088508429,8.53271678,157.02,157.0,6.36942675]
[1750088508739,4.75577813,157.01,157.0,6.36942675]
[1750088508920,13.28849491,157.01,156.97,6.37064407]
[1750088509118,4.75577813,157.0,156.97,30.82997103]
[1750088509324,8.53271678,157.02,156.97,30.82997103]
[1750088509523,4.75559924,157.01,156.97,30.82997103]
[1750088509839,8.53271678,157.02,156.97,30.82997103]
[1750088510021,4.75564369,157.01,156.98,8.53271678]
[1750088510221,8.53271678,157.02,156.98,8.53271678]
[1750088510575,4.7554557,157.01,156.98,8.53271678]
[1750088510747,8.53271678,157.02,156.98,8.53271678]
[1750088510921,4.7554557,157.01,156.99,6.36983247]
[1750088511242,8.53271678,157.02,156.99,6.36983247]
[1750088511543,4.75544522,157.01,156.99,6.36983247]
[1750088511847,8.53271678,157.03,156.99,30.82713043]
[1750088512020,4.75496438,157.02,156.99,30.82713043]
[1750088512214,21.3791555,157.04,156.99,22.29441365]
[1750088512215,8.53271678,157.03,156.99,22.29441365]
[1750088512416,4.75490283,157.02,156.99,22.29441365]
[1750088512717,8.53271678,157.02,156.99,22.29441365]
[1750088512916,8.53271678,157.03,156.99,22.29441365]
[1750088513320,21.3791555,157.04,156.99,30.82713043]
[1750088513840,4.75471967,157.03,156.99,30.82713043]
[1750088514023,4.75471967,157.02,156.99,30.82713043]
[1750088514224,21.3791555,157.04,156.99,30.82713043]
[1750088514445,4.75471967,157.03,156.99,30.82713043]
[1750088514626,4.75471967,157.02,156.98,8.53271678]
[1750088514826,8.53271678,157.03,156.98,8.53271678]
[1750088515032,4.75424293,157.02,156.98,8.53271678]
[1750088515226,8.53271678,157.03,156.98,8.53271678]
[1750088515549,4.75424293,157.02,156.98,8.53271678]
[1750088515729,8.53271678,157.0,156.97,6.37064407]
[1750088516762,8.53271678,156.98,156.97,6.37064407]
[1750088516940,13.28839299,156.98,156.97,6.37064407]
[1750088518021,4.75567621,156.98,156.97,6.37064407]
[1750088518222,8.53271678,157.0,156.97,6.37064407]
[1750088518443,4.75615267,156.99,156.97,6.37064407]
[1750088518635,8.53271678,156.99,156.96,6.37104994]
[1750088518947,13.28901483,156.98,156.96,6.37104994]
[1750088519149,8.53271678,156.98,156.96,6.37104994]
[1750088520644,8.53271678,156.97,156.94,6.37186185]
[1750088521542,8.53271678,156.96,156.94,6.37186185]
[1750088521743,26.0,156.99,156.94,6.37186185]
[1750088522058,8.53271678,156.95,156.94,6.37186185]
[1750088522259,13.29003941,156.95,156.94,6.37186185]
[1750088522622,13.29003941,156.95,156.92,22.30340684]
[1750088522944,13.29082054,156.94,156.92,22.30340684]
[1750088523130,8.53271678,156.94,156.92,22.30340684]
[1750088524328,8.53271678,156.93,156.92,6.37267397]
[1750088524530,8.53271678,156.93,156.91,45.59345792]
[1750088524739,13.29035342,156.92,156.87,6.37470516]
[1750088525040,8.53271678,156.91,156.87,22.31146808]
[1750088525761,8.53271678,156.9,156.87,22.31146808]
[1750088526727,8.53271678,156.9,156.87,15.93676292]
[1750088526927,8.53271678,156.88,156.86,6.37511156]
[1750088527265,8.53271678,156.87,156.86,6.37511156]
[1750088527556,8.53271678,156.87,156.82,15.08501678]
[1750088527557,8.53271678,156.87,156.81,66.41792392]
[1750088527741,8.53271678,156.87,156.82,8.53271678]
[1750088528262,8.53271678,156.86,156.82,8.53271678]
[1750088528644,8.53271678,156.86,156.82,30.85129859]
[1750088529046,27.6547,156.92,156.83,18.64964886]
[1750088529375,8.53271678,156.9,156.86,8.53271678]
[1750088529746,8.53271678,156.89,156.85,8.53271678]
[1750088530059,8.53271678,156.89,156.84,8.53271678]
[1750088530766,8.53271678,156.89,156.85,6.37551801]
[1750088530944,8.53271678,156.9,156.85,30.84702981]
[1750088531153,8.53271678,156.9,156.86,8.53271678]
[1750088531349,8.53271678,156.9,156.85,30.84702981]
[1750088535072,10.18741678,156.92,156.87,8.53271678]
[1750088535377,13.27186631,156.93,156.88,8.53271678]
[1750088535543,8.53271678,156.93,156.88,8.53271678]
[1750088536243,8.53271678,156.91,156.89,6.37389253]
[1750088537183,8.53271678,156.9,156.89,6.37389253]
[1750088537475,8.53271678,156.91,156.89,6.37389253]
[1750088538152,8.53271678,156.91,156.87,22.31060825]
[1750088542154,8.53271678,156.92,156.87,30.84332503]
[1750088542956,3.32396609,156.95,156.9,8.53271678]
[1750088543290,8.53271678,156.97,156.93,8.53271678]
[1750088543500,10.03431678,156.99,156.94,8.53271678]
[1750088543953,8.53271678,156.98,156.94,8.53271678]
[1750088544372,8.53271678,156.98,156.95,6.37145587]
[1750088544570,8.53271678,156.97,156.95,6.37145587]
[1750088544765,8.53271678,156.96,156.95,6.37145587]
[1750088545680,8.53271678,156.97,156.95,6.37145587]
[1750088545882,6.23477908,156.99,156.95,6.37145587]
[1750088546059,8.53271678,156.98,156.95,6.37145587]
[1750088546256,8.53271678,156.98,156.94,6.37186185]
[1750088547793,8.53271678,156.95,156.88,22.30907854]
[1750088547989,8.53271678,156.93,156.89,27.18236564]
[1750088548282,8.53271678,156.95,156.91,8.53271678]
[1750088548784,26.0,156.97,156.9,30.83896542]
[1750088548785,8.53271678,156.94,156.9,30.83896542]
[1750088550183,8.53271678,156.94,156.9,22.30624864]
[1750088551056,8.53271678,156.93,156.9,22.30624864]
[1750088551979,8.53271678,156.93,156.9,15.93276235]
[1750088552759,8.53271678,156.93,156.89,6.37389253]
[1750088552964,8.53271678,156.91,156.89,6.37389253]
[1750088554091,8.53271678,156.92,156.88,22.31002107]
[1750088554285,8.53271678,156.93,156.88,30.84273785]
[1750088555621,8.53271678,156.93,156.88,22.31002107]
[1750088555768,8.53271678,156.92,156.88,22.31002107]
[1750088556792,8.53271678,156.93,156.88,30.84273785]
[1750088559088,8.53271678,156.93,156.88,22.31002107]
[1750088559267,8.53271678,156.93,156.88,30.84273785]
[1750088561207,26.0,156.96,156.88,30.84273785]
[1750088561509,8.53271678,156.93,156.89,8.53271678]
[1750088563010,8.53271678,156.93,156.88,30.84273785]
[1750088564304,3.32372044,156.97,156.9,8.53271678]
[1750088564474,1.5016,156.99,156.89,18.64964886]
[1750088564804,4.75624218,156.98,156.96,8.53271678]
[1750088565106,8.53271678,157.01,156.97,22.29725425]
[1750088565277,9.51179,157.0,156.97,22.29725425]
[1750088565473,8.53271678,157.01,156.97,22.29725425]
[1750088565906,4.94672993,157.03,156.97,30.82997103]
[1750088566205,9.5109969,157.02,156.99,8.53271678]
[1750088566406,4.75549845,157.01,156.99,8.53271678]
[1750088566586,19.8309555,157.04,156.99,8.53271678]
[1750088566784,9.51072872,157.03,156.99,8.53271678]
[1750088566989,4.75536436,157.02,156.99,8.53271678]
[1750088567189,19.8309555,157.04,157.0,6.36942675]
[1750088567412,9.49911573,157.03,157.0,6.36942675]
[1750088567615,4.7495564,157.02,157.0,6.36942675]
[1750088567911,19.8309555,157.04,157.0,6.36942675]
[1750088568112,18.03169648,157.03,157.0,6.36942675]
[1750088568293,8.53271678,157.03,156.99,6.36983247]
[1750088568795,4.74951156,157.02,156.99,6.36983247]
[1750088568992,8.53271678,157.03,156.99,6.36983247]
[1750088569407,11.29823872,157.04,157.0,8.53271678]
[1750088569605,11.29823872,157.04,157.02,8.53271678]
[1750088569985,11.29823872,157.04,157.03,8.53271678]
[1750088570387,20.46693284,157.09,157.03,14.90092667]
[1750088570655,20.46693284,157.09,157.05,8.53271678]
[1750088571492,20.46693284,157.09,157.06,6.3669935]
[1750088572589,20.46693284,157.09,157.06,14.89971028]
[1750088572788,20.46693284,157.09,157.06,6.3669935]
[1750088572988,20.46693284,157.09,157.06,14.89971028]
[1750088573221,28.99964962,157.09,157.06,6.3669935]
[1750088573393,8.53271678,157.08,157.03,15.92052474]
[1750088573594,8.53271678,157.08,157.03,24.45324152]
[1750088573810,8.53271678,157.08,157.04,8.53271678]
[1750088574191,28.99964962,157.09,157.04,8.53271678]
[1750088574402,8.53271678,157.08,157.04,8.53271678]
[1750088574605,28.99964962,157.09,157.04,8.53271678]
[1750088575528,28.99964962,157.09,157.05,6.36739891]
[1750088575730,8.53271678,157.08,157.05,6.36739891]
[1750088575907,20.46693284,157.09,157.05,14.90011569]
[1750088576106,28.99964962,157.09,157.05,6.36739891]
[1750088580635,8.53271678,157.06,157.02,14.90133224]
[1750088580836,8.53271678,157.07,157.03,8.53271678]
[1750088582514,8.53271678,157.06,157.02,30.82287089]
[1750088583009,8.53271678,157.06,157.02,6.36861546]
[1750088583213,1.5743,157.06,157.0,6.36942675]
[1750088583518,8.53271678,157.07,157.02,8.53271678]
[1750088583915,8.53271678,157.06,157.02,8.53271678]
[1750088584623,8.53271678,157.06,157.03,6.36820989]
[1750088585515,20.75125598,157.09,157.03,6.36820989]
[1750088585516,8.53271678,157.04,157.03,6.36820989]
[1750088586630,8.53271678,157.04,157.01,6.36902108]
[1750088586811,8.53271678,157.06,157.02,8.53271678]
[1750088587326,8.53271678,157.05,157.01,30.82429056]
[1750088588324,26.0,157.08,157.01,30.82429056]
[1750088588647,8.53271678,157.05,157.01,30.82429056]
[1750088590032,8.53271678,157.06,157.01,30.82429056]
[1750088590338,8.53271678,157.06,157.01,22.29157378]
[1750088590542,8.53271678,157.06,157.01,30.82429056]
[1750088590932,26.0,157.08,157.01,30.82429056]
[1750088591134,8.53271678,157.06,157.01,30.82429056]
[1750088591463,8.53271678,157.09,157.04,8.53271678]
[1750088591756,8.53271678,157.09,157.05,6.36739891]
[1750088592126,8.53271678,157.08,157.05,6.36739891]
[1750088594248,8.53271678,157.08,157.04,22.28672607]
[1750088594449,9.44878964,157.09,157.04,6.36780438]
[1750088594746,8.53271678,157.08,157.04,22.28731533]
[1750088594955,8.53271678,157.08,157.04,30.82003211]
[1750088595255,8.53271678,157.08,157.04,22.28731533]
[1750088596047,8.53271678,157.07,157.04,22.28731533]
[1750088598165,8.53271678,157.09,157.04,8.53271678]
[1750088599158,8.53271678,157.08,157.04,8.53271678]
[1750088600249,8.53271678,157.09,157.05,22.2858962]
[1750088600555,20.6245252,157.1,157.05,30.81861298]
[1750088600852,10.99953633,157.1,157.06,8.53271678]
[1750088602458,10.99953633,157.1,157.07,6.36658814]
[1750088603161,10.99953633,157.1,157.07,22.2830585]
[1750088603362,10.99953633,157.1,157.08,8.53271678]
[1750088603535,10.99953633,157.1,157.09,8.53271678]
[1750088604034,10.99953633,157.1,157.09,27.18236564]
[1750088604233,1.5594,157.18,157.11,22.27738527]
[1750088604444,1.5594,157.18,157.14,8.53271678]
[1750088604647,13.26512064,157.19,157.14,8.53271678]
[1750088604845,8.53271678,157.19,157.14,8.53271678]
[1750088605177,3.31816389,157.21,157.15,8.53271678]
[1750088605343,28.98440045,157.2,157.15,8.53271678]
[1750088605542,4.7320605,157.19,157.15,8.53271678]
[1750088605740,24.25231726,157.2,157.16,6.36294222]
[1750088606178,19.52028209,157.2,157.16,6.36294222]
[1750088606544,4.73277217,157.19,157.16,6.36294222]
[1750088606771,19.52028209,157.2,157.16,6.36294222]
[1750088606969,4.73278186,157.19,157.16,6.36294222]
[1750088607144,19.52028209,157.2,157.16,6.36294222]
[1750088607352,4.7327858,157.19,157.16,6.36294222]
[1750088607559,19.52028209,157.2,157.16,6.36294222]
[1750088607768,4.73276133,157.19,157.16,6.36294222]
[1750088607957,24.2484754,157.2,157.16,6.36294222]
[1750088608153,4.72819331,157.19,157.16,6.36294222]
[1750088608355,24.2484754,157.2,157.16,6.36294222]
[1750088608547,4.72818542,157.19,157.16,6.36294222]
[1750088608748,4.73604786,157.18,157.16,6.36294222]
[1750088609076,4.73604786,157.19,157.16,6.36294222]
[1750088609247,4.73607235,157.18,157.16,6.36294222]
[1750088609570,8.53271678,157.19,157.16,6.36294222]
[1750088609767,4.73628022,157.18,157.16,6.36294222]
[1750088609942,8.53271678,157.19,157.16,6.36294222]
[1750088610144,4.73628022,157.18,157.16,6.36294222]
[1750088610366,8.53271678,157.19,157.16,6.36294222]
[1750088610552,4.73272038,157.18,157.16,6.36294222]
[1750088610869,8.53271678,157.19,157.16,6.36294222]
[1750088611073,8.53271678,157.17,157.12,6.36456211]
[1750088611271,8.53271678,157.17,157.13,8.53271678]
[1750088612152,4.73427752,157.16,157.13,8.53271678]
[1750088612455,8.53271678,157.17,157.13,8.53271678]
[1750088612653,4.73265084,157.18,157.14,8.53271678]
[1750088612853,13.26536762,157.19,157.14,8.53271678]
[1750088613178,4.73213002,157.18,157.15,6.36334712]
[1750088613370,13.26484595,157.19,157.15,6.36334712]
[1750088613678,8.53271678,157.19,157.15,6.36334712]
[1750088615471,10.98756531,157.2,157.16,8.53271678]
[1750088616268,19.52028209,157.2,157.16,8.53271678]
[1750088617474,19.52028209,157.2,157.17,6.36253737]
[1750088617981,8.53271678,157.18,157.13,6.36415706]
[1750088618283,8.53271678,157.15,157.13,6.36415706]
[1750088618582,8.53271678,157.16,157.13,6.36415706]
[1750088619972,8.53271678,157.17,157.13,6.36415706]
[1750088620682,8.53271678,157.18,157.13,30.8072665]
[1750088621380,10.98756531,157.2,157.14,8.53271678]
[1750088621571,8.53271678,157.19,157.14,8.53271678]
[1750088622384,8.53271678,157.19,157.09,27.5373]
[1750088622385,26.0,157.17,157.11,6.36496722]
[1750088622553,8.53271678,157.17,157.13,8.53271678]
[1750088623370,8.53271678,157.18,157.14,6.36375206]
[1750088623787,8.53271678,157.17,157.14,6.36375206]
[1750088623976,8.53271678,157.16,157.14,6.36375206]
[1750088624693,8.53271678,157.16,157.13,6.36415706]
[1750088625865,8.53271678,157.17,157.13,6.36415706]
[1750088626065,8.53271678,157.14,157.1,6.36537237]
[1750088626278,8.53271678,157.11,157.05,72.05906948]
[1750088626581,8.53271678,157.09,157.05,80.59178626]
[1750088626768,8.53271678,157.09,157.06,6.3669935]
[1750088627298,8.53271678,157.1,157.06,6.3669935]
[1750088627606,8.53271678,157.09,157.06,6.3669935]
[1750088627904,8.53271678,157.1,157.06,6.3669935]
[1750088628901,8.53271678,157.1,157.06,22.28447726]
[1750088630302,8.53271678,157.11,157.06,30.81719404]
[1750088631679,8.53271678,157.09,157.06,22.28447726]
[1750088632180,8.53271678,157.14,157.08,8.53271678]
[1750088632391,1.5091,157.19,157.13,8.53271678]
[1750088632574,1.5091,157.19,157.1,0.14216157]
[1750088632773,10.04181678,157.19,157.14,8.53271678]
[1750088632974,8.53271678,157.18,157.14,8.53271678]
[1750088633501,19.52028209,157.2,157.16,14.895659]
[1750088633675,8.53271678,157.17,157.13,14.89687384]
[1750088634170,4.72925335,157.19,157.13,14.89687384]
[1750088634379,8.53271678,157.17,157.13,14.89687384]
[1750088636112,10.98756531,157.2,157.13,14.89687384]
[1750088636294,8.53271678,157.17,157.13,14.89687384]
[1750088636491,8.53271678,157.17,157.13,6.36415706]
[1750088636693,9.46962232,157.19,157.13,6.36415706]
[1750088636910,8.53271678,157.16,157.13,6.36415706]
[1750088637504,4.73520807,157.18,157.13,6.36415706]
[1750088637813,8.53271678,157.16,157.13,6.36415706]
[1750088637999,8.53271678,157.16,157.12,6.36456211]
[1750088638887,8.53271678,157.15,157.12,6.36456211]
[1750088640022,8.53271678,157.15,157.11,22.27732369]
[1750088640699,8.53271678,157.14,157.11,22.27732369]
[1750088641114,8.53271678,157.12,157.09,6.36577757]
[1750088641432,8.53271678,157.1,157.06,6.3669935]
[1750088641593,8.53271678,157.09,157.06,6.3669935]
[1750088641995,32.64797513,157.15,157.06,22.28447726]
[1750088642312,9.4895677,157.14,157.06,22.28447726]
[1750088642525,9.4895677,157.13,157.07,18.64964886]
[1750088642830,26.0,157.15,157.07,18.64964886]
[1750088642831,26.0,157.15,157.08,8.53271678]
[1750088643031,8.53271678,157.12,157.08,8.53271678]
[1750088643217,8.53271678,157.12,157.07,18.64964886]
[1750088643218,8.53271678,157.12,157.07,8.53271678]
[1750088643895,9.49753382,157.11,157.08,6.36618283]
[1750088644113,8.53271678,157.1,157.08,6.36618283]
[1750088645640,8.53271678,157.11,157.08,6.36618283]
[1750088646090,8.53271678,157.11,157.07,6.36658814]
[1750088646491,8.53271678,157.11,157.07,22.2830585]
[1750088647216,0.28432314,157.14,157.07,22.2830585]
[1750088647529,8.53271678,157.11,157.07,22.2830585]
[1750088648829,26.0,157.15,157.08,8.53271678]
[1750088649030,9.50049184,157.14,157.1,8.53271678]
[1750088649339,13.28226138,157.13,157.08,27.18236564]
[1750088649498,8.53271678,157.12,157.08,27.18236564]
[1750088650116,8.53271678,157.13,157.09,8.53271678]
[1750088650299,8.53271678,157.13,157.1,6.36537237]
[1750088651706,8.53271678,157.12,157.09,22.28020732]
[1750088651907,8.53271678,157.11,157.09,6.36577757]
[1750088652098,8.53271678,157.1,157.09,6.36577757]
[1750088652296,8.53271678,157.11,157.09,6.36577757]
[1750088653420,8.53271678,157.11,157.07,22.2830585]
[1750088654995,8.53271678,157.12,157.07,30.81577528]
[1750088656027,8.53271678,157.12,157.08,8.53271678]
[1750088656406,1.78462314,157.16,157.08,8.53271678]
[1750088656618,8.53271678,157.12,157.08,8.53271678]
[1750088657406,4.74968576,157.11,157.07,30.81577528]
[1750088657613,8.53271678,157.12,157.07,30.81577528]
[1750088658003,9.49968302,157.11,157.07,30.81577528]
[1750088658230,8.53271678,157.12,157.07,30.81577528]
[1750088658528,4.74979799,157.11,157.07,30.81577528]
[1750088658730,8.53271678,157.12,157.07,30.81577528]
[1750088658935,4.7497832,157.11,157.08,8.53271678]
[1750088659110,8.53271678,157.12,157.08,8.53271678]
[1750088659428,8.53271678,157.12,157.09,6.36577757]
[1750088659811,13.28245646,157.11,157.09,6.36577757]
[1750088660016,4.74958435,157.15,157.09,6.36577757]
[1750088660215,8.53271678,157.11,157.09,6.36577757]
[1750088660526,8.53271678,157.12,157.09,6.36577757]
[1750088660905,18.03392374,157.11,157.09,6.36577757]
[1750088661123,8.53271678,157.11,157.09,6.36577757]
[1750088661437,8.53271678,157.12,157.09,6.36577757]
[1750088661633,8.53271678,157.12,157.09,22.28022151]
[1750088661831,8.53271678,157.13,157.09,22.28022151]
[1750088662032,6.24988435,157.16,157.09,22.28022151]
[1750088662033,13.2826713,157.12,157.09,22.28022151]
[1750088662211,8.53271678,157.12,157.09,22.28022151]
[1750088662613,8.53271678,157.14,157.09,30.81293829]
[1750088662813,4.75222758,157.13,157.09,30.81293829]
[1750088663119,8.53271678,157.14,157.1,8.53271678]
[1750088663512,8.53271678,157.14,157.12,6.36456211]
[1750088663714,13.28551075,157.13,157.12,6.36456211]
[1750088663914,18.0384413,157.13,157.07,41.91548866]
[1750088664117,8.53271678,157.11,157.07,41.91548866]
[1750088664733,0.14216157,157.17,157.06,8.53271678]
[1750088664734,8.53271678,157.2,157.13,18.64964886]
[1750088664936,8.53271678,157.18,157.12,18.64964886]
[1750088665142,9.50612363,157.17,157.13,8.53271678]
[1750088665445,8.53271678,157.18,157.13,8.53271678]
[1750088665643,4.75187951,157.17,157.14,22.27313223]
[1750088665828,8.53271678,157.18,157.14,22.27313223]
[1750088666029,4.75153718,157.17,157.14,22.27313223]
[1750088666337,8.53271678,157.18,157.14,22.27313223]
[1750088666534,9.50341834,157.17,157.14,22.27313223]
[1750088666741,4.75170917,157.16,157.14,22.27313223]
[1750088666915,9.50456802,157.15,157.14,22.27313223]
[1750088667435,4.75228401,157.15,157.14,22.27313223]
[1750088667614,13.2852537,157.15,157.12,6.36456211]
[1750088667817,8.53271678,157.13,157.12,6.36456211]
[1750088668144,6.32850303,157.17,157.12,22.2759674]
[1750088668354,8.53271678,157.15,157.12,22.2759674]
[1750088668535,9.50571505,157.14,157.12,22.2759674]
[1750088668847,8.53271678,157.15,157.12,22.2759674]
[1750088669030,9.50764118,157.14,157.12,22.2759674]
[1750088669232,8.53271678,157.15,157.12,22.2759674]
[1750088669415,4.75382059,157.14,157.12,6.36456211]
[1750088669616,4.75382059,157.14,157.13,59.5465227]
[1750088670016,8.53271678,157.21,157.13,75.45691536]
[1750088670223,8.53271678,157.21,157.16,8.53271678]
[1750088671131,8.53271678,157.2,157.15,8.53271678]
[1750088671646,8.53271678,157.2,157.16,22.27029778]
[1750088673118,8.53271678,157.19,157.16,22.27029778]
[1750088673318,8.53271678,157.18,157.16,6.36294222]
[1750088673641,8.53271678,157.18,157.13,50.44221028]
[1750088673642,8.53271678,157.18,157.14,6.36375206]
[1750088674549,8.53271678,157.19,157.14,30.80584901]
[1750088675938,4.75263648,157.2,157.14,30.80584901]
[1750088675939,8.53271678,157.18,157.14,6.36375206]
[1750088676243,8.53271678,157.15,157.12,6.36456211]
[1750088676447,8.53271678,157.13,157.12,6.36456211]
[1750088676945,0.28432314,157.16,157.12,6.36456211]
[1750088677151,8.53271678,157.13,157.09,6.36577757]
[1750088679345,8.53271678,157.12,157.09,6.36577757]
[1750088680760,8.53271678,157.13,157.09,22.28022151]
[1750088683253,5.03716321,157.16,157.09,30.81293829]
[1750088683557,8.53271678,157.14,157.1,8.53271678]
[1750088684165,4.75284007,157.17,157.1,8.53271678]
[1750088684327,8.53271678,157.14,157.1,8.53271678]
[1750088684533,8.53271678,157.14,157.11,6.36496722]
[1750088685135,8.53271678,157.12,157.11,6.36496722]
[1750088685560,8.53271678,157.12,157.07,6.36658814]
[1750088685773,8.53271678,157.1,157.07,6.36658814]
[1750088686841,8.53271678,157.1,157.07,22.2830585]
[1750088687045,8.53271678,157.11,157.07,30.81577528]
[1750088688668,8.53271678,157.12,157.07,30.81577528]
[1750088689569,8.53271678,157.11,157.07,22.2830585]
[1750088691659,8.53271678,157.08,157.07,6.36658814]
[1750088692552,8.53271678,157.09,157.07,6.36658814]
[1750088693256,8.53271678,157.09,157.05,72.05906948]
[1750088693257,8.53271678,157.09,157.06,6.3669935]
[1750088693457,8.53271678,157.08,157.06,6.3669935]
[1750088694072,8.53271678,157.09,157.06,6.3669935]
[1750088695480,38.27,157.12,157.06,6.3669935]
[1750088695653,8.53271678,157.09,157.06,6.3669935]
[1750088696172,1.5772,157.13,157.06,6.3669935]
[1750088696380,10.10991678,157.13,157.06,54.11944478]
[1750088696556,8.53271678,157.11,157.06,22.28447726]
[1750088696755,8.53271678,157.09,157.06,22.28447726]
[1750088698781,8.53271678,157.1,157.06,22.28447726]
[1750088702269,8.53271678,157.11,157.06,30.81719404]
[1750088702459,8.53271678,157.12,157.07,8.53271678]
[1750088702780,8.53271678,157.1,157.06,22.28447726]
[1750088702975,34.53271678,157.12,157.06,22.28447726]
[1750088703180,8.53271678,157.08,157.06,22.28447726]
[1750088703477,8.53271678,157.09,157.06,22.28447726]
[1750088704549,8.53271678,157.1,157.06,22.28447726]
[1750088704766,26.0,157.12,157.06,30.81719404]
[1750088704975,8.53271678,157.11,157.06,30.81719404]
[1750088705688,8.53271678,157.13,157.08,8.53271678]
[1750088705974,8.53271678,157.16,157.11,8.53271678]
[1750088706181,8.53271678,157.16,157.12,8.53271678]
[1750088706891,11.85128038,157.19,157.14,8.53271678]
[1750088707094,11.14401953,157.2,157.15,8.53271678]
[1750088707385,11.14401953,157.2,157.17,8.53271678]
[1750088708473,11.14401953,157.2,157.18,6.36213258]
[1750088709586,11.14401953,157.2,157.18,14.89484936]
[1750088710189,11.14401953,157.2,157.19,14.89444462]
[1750088712282,31.80038938,157.27,157.19,33.54409348]
[1750088712588,31.80038938,157.27,157.23,8.53271678]
[1750088712883,31.80038938,157.27,157.26,8.53271678]
[1750088714270,31.80038938,157.27,157.26,14.89161287]
[1750088715783,31.80038938,157.27,157.26,6.35889609]
[1750088715988,31.80038938,157.27,157.26,14.89161287]
[1750088716471,31.80038938,157.27,157.26,33.54126173]
[1750088717785,31.80038938,157.27,157.26,59.96774644]
[1750088719400,22.01063232,157.27,157.26,42.50046322]
[1750088719573,19.78205897,157.32,157.3,44.64964886]
[1750088719771,8.33333333,157.35,157.31,8.53271678]
[1750088719997,8.33333333,157.35,157.33,8.53271678]
[1750088720380,8.33333333,157.35,157.34,6.35566289]
[1750088722890,8.33333333,157.35,157.31,22.24810328]
[1750088723095,8.53271678,157.34,157.31,22.24810328]